[Event "Early-Titled-Tuesday-Blitz-June-18-2024"]
[Site "Chess.com"]
[Date "2024.06.18"]
[Round "2"]
[White "Mysterio47"]
[Black "RebelJohnny"]
[Result "1-0"]
[WhiteElo "2836"]
[BlackElo "2581"]
[TimeControl "180+1"]
[EndTime "8:17:14 PDT"]
[Termination "Mysterio47 won by resignation"]

1. e4 {[%clk 0:03:00.9]} 1... c5 {[%clk 0:02:59.7]} 2. Nf3 {[%clk 0:03:01.2]}
2... d6 {[%clk 0:02:59]} 3. d4 {[%clk 0:03:01.7]} 3... cxd4 {[%clk 0:02:59.9]}
4. Nxd4 {[%clk 0:03:02.2]} 4... Nf6 {[%clk 0:03:00.4]} 5. Nc3 {[%clk 0:03:02.8]}
5... a6 {[%clk 0:02:59.9]} 6. a3 {[%clk 0:03:03.3]} 6... e5 {[%clk 0:02:56.9]}
7. Nf5 {[%clk 0:03:03.7]} 7... Bxf5 {[%clk 0:02:52.7]} 8. exf5 {[%clk
0:03:03.5]} 8... d5 {[%clk 0:02:53.2]} 9. Bg5 {[%clk 0:03:03.5]} 9... d4 {[%clk
0:02:49.1]} 10. Ne4 {[%clk 0:03:02.9]} 10... Nbd7 {[%clk 0:02:42.7]} 11. Bd3
{[%clk 0:02:59.7]} 11... Be7 {[%clk 0:02:38.7]} 12. Bxf6 {[%clk 0:02:59.8]}
12... Nxf6 {[%clk 0:02:38.5]} 13. O-O {[%clk 0:02:58.3]} 13... O-O {[%clk
0:02:26.6]} 14. Qf3 {[%clk 0:02:56.3]} 14... Qb6 {[%clk 0:02:12.2]} 15. Rab1
{[%clk 0:02:55.9]} 15... Rac8 {[%clk 0:02:08.9]} 16. Rfe1 {[%clk 0:02:56.2]}
16... Nxe4 {[%clk 0:01:55.2]} 17. Qxe4 {[%clk 0:02:56.3]} 17... Bf6 {[%clk
0:01:55.6]} 18. g3 {[%clk 0:02:56.3]} 18... Rfe8 {[%clk 0:01:54.1]} 19. h4
{[%clk 0:02:56.3]} 19... Qc6 {[%clk 0:01:50.7]} 20. Kg2 {[%clk 0:02:55.8]} 20...
Qxe4+ {[%clk 0:01:49.9]} 21. Rxe4 {[%clk 0:02:56.7]} 21... Bd8 {[%clk
0:01:44.9]} 22. Rbe1 {[%clk 0:02:54.1]} 22... f6 {[%clk 0:01:44.9]} 23. Rxd4
{[%clk 0:02:53.2]} 23... Bb6 {[%clk 0:01:37.4]} 24. Rd7 {[%clk 0:02:53]} 24...
Rc7 {[%clk 0:01:30.7]} 25. Rxc7 {[%clk 0:02:53.3]} 25... Bxc7 {[%clk 0:01:31.6]}
26. Be4 {[%clk 0:02:53.9]} 26... b6 {[%clk 0:01:30.5]} 27. Bb7 {[%clk
0:02:45.2]} 27... a5 {[%clk 0:01:30.2]} 28. Bd5+ {[%clk 0:02:44.8]} 28... Kf8
{[%clk 0:01:30.3]} 29. Kf3 {[%clk 0:02:43.2]} 29... Rd8 {[%clk 0:01:16.4]} 30.
Ke4 {[%clk 0:02:43.4]} 30... Ke7 {[%clk 0:01:13.4]} 31. g4 {[%clk 0:02:41.4]}
31... h6 {[%clk 0:01:02.2]} 32. Rd1 {[%clk 0:02:40.1]} 32... Bd6 {[%clk
0:01:00.4]} 33. Rd3 {[%clk 0:02:38.4]} 33... Bc5 {[%clk 0:00:59.8]} 34. f3
{[%clk 0:02:38.8]} 34... Bf2 {[%clk 0:00:52.9]} 35. Rb3 {[%clk 0:02:32.7]} 35...
Rc8 {[%clk 0:00:45.2]} 36. c3 {[%clk 0:02:23.9]} 36... Rc5 {[%clk 0:00:27.9]}
37. h5 {[%clk 0:02:22.4]} 37... Rc7 {[%clk 0:00:17.6]} 38. Rb5 {[%clk
0:02:19.8]} 38... Kd6 {[%clk 0:00:17.5]} 39. Be6 {[%clk 0:02:15.2]} 39... Ke7
{[%clk 0:00:16.4]} 40. Rd5 {[%clk 0:02:14.5]} 40... Bc5 {[%clk 0:00:14.1]} 41.
b4 {[%clk 0:02:07.9]} 41... axb4 {[%clk 0:00:15]} 42. axb4 {[%clk 0:02:08.8]}
42... Bd6 {[%clk 0:00:15.7]} 43. Kd3 {[%clk 0:02:08.9]} 43... Ra7 {[%clk
0:00:13.2]} 44. Rb5 {[%clk 0:02:08.8]} 44... Bc7 {[%clk 0:00:13.7]} 45. Kc4
{[%clk 0:02:03.9]} 45... Ra3 {[%clk 0:00:13.2]} 46. Rd5 {[%clk 0:02:03.7]} 46...
Bd6 {[%clk 0:00:12.1]} 47. Rd3 {[%clk 0:02:04.3]} 47... b5+ {[%clk 0:00:01.2]}
48. Kxb5 {[%clk 0:02:03.6]} 48... Ra7 {[%clk 0:00:02]} 49. Kc4 {[%clk
0:02:03.5]} 49... Rc7+ {[%clk 0:00:02.4]} 50. Kb3 {[%clk 0:02:04.1]} 50... Ra7
{[%clk 0:00:03.3]} 51. c4 {[%clk 0:02:03.2]} 51... Ra1 {[%clk 0:00:04.2]} 52. c5
{[%clk 0:02:02.9]} 52... Bb8 {[%clk 0:00:04.5]} 53. Rd7+ {[%clk 0:02:02.1]} 1-0

[Event "Early-Titled-Tuesday-Blitz-June-18-2024"]
[Site "Chess.com"]
[Date "2024.06.18"]
[Round "2"]
[White "JosefineHeinemann"]
[Black "PeshkaCh"]
[Result "0-1"]
[WhiteElo "2499"]
[BlackElo "2869"]
[TimeControl "180+1"]
[EndTime "8:17:14 PDT"]
[Termination "PeshkaCh won by resignation"]

1. e4 {[%clk 0:03:00.9]} 1... e5 {[%clk 0:02:59.5]} 2. Nf3 {[%clk 0:02:59.3]}
2... Nc6 {[%clk 0:02:59.8]} 3. Bb5 {[%clk 0:02:56.7]} 3... a6 {[%clk 0:02:59.2]}
4. Ba4 {[%clk 0:02:56.7]} 4... Nge7 {[%clk 0:02:59.6]} 5. Nc3 {[%clk 0:02:55.7]}
5... Ng6 {[%clk 0:02:59.7]} 6. d4 {[%clk 0:02:55.2]} 6... exd4 {[%clk
0:02:59.1]} 7. Nxd4 {[%clk 0:02:56.1]} 7... Bc5 {[%clk 0:02:51]} 8. Nxc6 {[%clk
0:02:40.7]} 8... bxc6 {[%clk 0:02:50.8]} 9. O-O {[%clk 0:02:40.1]} 9... O-O
{[%clk 0:02:51.3]} 10. Bb3 {[%clk 0:02:38.2]} 10... d6 {[%clk 0:02:49.7]} 11.
Qh5 {[%clk 0:02:19.8]} 11... Kh8 {[%clk 0:02:40.5]} 12. Bg5 {[%clk 0:02:00.8]}
12... f6 {[%clk 0:02:40.4]} 13. Bd2 {[%clk 0:02:00.4]} 13... f5 {[%clk
0:02:32.2]} 14. exf5 {[%clk 0:01:38.2]} 14... Rxf5 {[%clk 0:02:16.8]} 15. Qe2
{[%clk 0:01:37.1]} 15... d5 {[%clk 0:01:41.1]} 16. Rae1 {[%clk 0:01:31.3]} 16...
Bd7 {[%clk 0:01:40.3]} 17. Nd1 {[%clk 0:01:18.2]} 17... Qf6 {[%clk 0:01:30.9]}
18. c3 {[%clk 0:01:05.2]} 18... Rf8 {[%clk 0:01:27.6]} 19. Ne3 {[%clk
0:00:44.8]} 19... Nf4 {[%clk 0:01:19.8]} 20. Qxa6 {[%clk 0:00:18]} 20... Nh3+
{[%clk 0:00:49]} 21. gxh3 {[%clk 0:00:14.5]} 21... Rg5+ {[%clk 0:00:48.5]} 22.
Ng4 {[%clk 0:00:10.1]} 22... Bxg4 {[%clk 0:00:48]} 23. Bxg5 {[%clk 0:00:10.4]}
23... Bxf2+ {[%clk 0:00:47.9]} 0-1

[Event "Early-Titled-Tuesday-Blitz-June-18-2024"]
[Site "Chess.com"]
[Date "2024.06.18"]
[Round "2"]
[White "Lennis93"]
[Black "AlphaPerseii"]
[Result "1-0"]
[WhiteElo "2620"]
[BlackElo "2392"]
[TimeControl "180+1"]
[EndTime "8:17:14 PDT"]
[Termination "Lennis93 won by resignation"]

1. h3 {[%clk 0:03:00.9]} 1... d5 {[%clk 0:02:56.2]} 2. c4 {[%clk 0:03:00.4]}
2... d4 {[%clk 0:02:52]} 3. e4 {[%clk 0:02:58.4]} 3... dxe3 {[%clk 0:02:45.3]}
4. fxe3 {[%clk 0:02:58.1]} 4... e5 {[%clk 0:02:29.6]} 5. Qf3 {[%clk 0:02:50.2]}
5... Nc6 {[%clk 0:02:22.4]} 6. a3 {[%clk 0:02:49.3]} 6... Bd6 {[%clk 0:02:10.4]}
7. Nc3 {[%clk 0:02:48.7]} 7... f5 {[%clk 0:02:04.7]} 8. d3 {[%clk 0:02:39.7]}
8... Nf6 {[%clk 0:01:50.2]} 9. Bd2 {[%clk 0:02:25.9]} 9... O-O {[%clk
0:01:33.3]} 10. O-O-O {[%clk 0:02:25.7]} 10... Qe7 {[%clk 0:01:28.9]} 11. Qf2
{[%clk 0:02:09]} 11... Bxa3 {[%clk 0:01:05.2]} 12. Nf3 {[%clk 0:02:07.4]} 12...
e4 {[%clk 0:01:01.4]} 13. Nd4 {[%clk 0:02:05.9]} 13... Nxd4 {[%clk 0:00:56.4]}
14. exd4 {[%clk 0:02:06.8]} 14... Bb4 {[%clk 0:00:49.2]} 15. Re1 {[%clk
0:02:02.9]} 15... Bd7 {[%clk 0:00:46.3]} 16. d5 {[%clk 0:02:02.1]} 16... Rae8
{[%clk 0:00:38.2]} 17. d4 {[%clk 0:01:42.9]} 17... c6 {[%clk 0:00:21.4]} 18.
dxc6 {[%clk 0:01:41.2]} 18... Bxc6 {[%clk 0:00:22.3]} 19. d5 {[%clk 0:01:40.8]}
19... Bd7 {[%clk 0:00:20.7]} 20. g3 {[%clk 0:01:38.8]} 20... Qd6 {[%clk
0:00:20.5]} 21. Kb1 {[%clk 0:01:20]} 21... Rc8 {[%clk 0:00:20.4]} 22. Rc1 {[%clk
0:01:15.3]} 22... Rfe8 {[%clk 0:00:19.7]} 23. Rh2 {[%clk 0:01:14.4]} 23... a6
{[%clk 0:00:15.7]} 24. Bf4 {[%clk 0:01:14.3]} 24... Qc5 {[%clk 0:00:13.9]} 25.
Be3 {[%clk 0:01:14.6]} 25... Qa5 {[%clk 0:00:14.1]} 26. Bd4 {[%clk 0:01:13.1]}
26... b5 {[%clk 0:00:13.8]} 27. Bxf6 {[%clk 0:01:12.4]} 27... gxf6 {[%clk
0:00:14.5]} 28. g4 {[%clk 0:01:12.4]} 28... bxc4 {[%clk 0:00:08.7]} 29. Qd4
{[%clk 0:01:11.7]} 29... Rb8 {[%clk 0:00:08.1]} 30. Bxc4 {[%clk 0:01:11.1]}
30... Rec8 {[%clk 0:00:06.3]} 31. d6+ {[%clk 0:01:10.7]} 31... Kg7 {[%clk
0:00:06.7]} 32. g5 {[%clk 0:01:10.7]} 32... Qe5 {[%clk 0:00:03.5]} 33. gxf6+
{[%clk 0:01:11]} 33... Kxf6 {[%clk 0:00:04.4]} 34. Nd5+ {[%clk 0:01:10.3]} 1-0

[Event "Early-Titled-Tuesday-Blitz-June-18-2024"]
[Site "Chess.com"]
[Date "2024.06.18"]
[Round "2"]
[White "GatoRojo150"]
[Black "Lestofante90"]
[Result "0-1"]
[WhiteElo "2647"]
[BlackElo "2978"]
[TimeControl "180+1"]
[EndTime "8:17:15 PDT"]
[Termination "Lestofante90 won by resignation"]

1. e4 {[%clk 0:03:00.9]} 1... c6 {[%clk 0:02:59.1]} 2. d4 {[%clk 0:03:00.3]}
2... d5 {[%clk 0:02:59.3]} 3. Nc3 {[%clk 0:03:00.8]} 3... dxe4 {[%clk
0:02:58.9]} 4. Nxe4 {[%clk 0:03:01.7]} 4... Nf6 {[%clk 0:02:59.3]} 5. Nxf6+
{[%clk 0:03:01.6]} 5... exf6 {[%clk 0:03:00.2]} 6. c3 {[%clk 0:03:01.6]} 6...
Bd6 {[%clk 0:02:58.3]} 7. Bd3 {[%clk 0:03:01.7]} 7... Na6 {[%clk 0:02:58.4]} 8.
Ne2 {[%clk 0:02:57.7]} 8... Nc7 {[%clk 0:02:53.4]} 9. O-O {[%clk 0:02:55.2]}
9... O-O {[%clk 0:02:53]} 10. Qc2 {[%clk 0:02:39.4]} 10... g6 {[%clk 0:02:52.9]}
11. Bh6 {[%clk 0:01:57.9]} 11... Re8 {[%clk 0:02:52.6]} 12. Rae1 {[%clk
0:01:53]} 12... f5 {[%clk 0:02:52.2]} 13. Qd2 {[%clk 0:01:44.8]} 13... Be6
{[%clk 0:02:37]} 14. b3 {[%clk 0:01:31.7]} 14... a5 {[%clk 0:02:29.9]} 15. Nf4
{[%clk 0:01:27.1]} 15... a4 {[%clk 0:01:58.9]} 16. b4 {[%clk 0:01:23.3]} 16...
Bxa2 {[%clk 0:01:07.5]} 17. Rxe8+ {[%clk 0:00:24.5]} 17... Nxe8 {[%clk
0:01:07.5]} 18. Re1 {[%clk 0:00:18.8]} 18... Bb3 {[%clk 0:01:02.6]} 19. g3
{[%clk 0:00:12.5]} 19... Nf6 {[%clk 0:01:01.5]} 20. Bg5 {[%clk 0:00:11.7]} 20...
Ne4 {[%clk 0:00:58.4]} 21. Bxe4 {[%clk 0:00:07.3]} 21... Qxg5 {[%clk 0:00:58.4]}
22. Bb1 {[%clk 0:00:05.3]} 22... a3 {[%clk 0:00:56.3]} 23. Ba2 {[%clk
0:00:04.7]} 23... Bxf4 {[%clk 0:00:48.2]} 0-1

[Event "Early-Titled-Tuesday-Blitz-June-18-2024"]
[Site "Chess.com"]
[Date "2024.06.18"]
[Round "2"]
[White "Gnechko_Ruslan"]
[Black "DmitryMaximov"]
[Result "0-1"]
[WhiteElo "2547"]
[BlackElo "2778"]
[TimeControl "180+1"]
[EndTime "8:17:18 PDT"]
[Termination "DmitryMaximov won by resignation"]

1. d4 {[%clk 0:03:00.9]} 1... Nf6 {[%clk 0:03:00.2]} 2. c4 {[%clk 0:03:01]} 2...
g6 {[%clk 0:03:00.8]} 3. Nc3 {[%clk 0:03:01.3]} 3... Bg7 {[%clk 0:03:01.5]} 4.
e4 {[%clk 0:03:01.7]} 4... O-O {[%clk 0:03:02.2]} 5. Nge2 {[%clk 0:03:02.2]}
5... d6 {[%clk 0:03:02.6]} 6. Ng3 {[%clk 0:03:02.6]} 6... c5 {[%clk 0:03:00.9]}
7. d5 {[%clk 0:03:02.8]} 7... e6 {[%clk 0:03:01.5]} 8. Be2 {[%clk 0:03:02.9]}
8... exd5 {[%clk 0:03:02]} 9. cxd5 {[%clk 0:03:03.8]} 9... h5 {[%clk 0:03:02.1]}
10. Bg5 {[%clk 0:03:02.6]} 10... a6 {[%clk 0:03:01.7]} 11. a4 {[%clk 0:03:02.3]}
11... Qb6 {[%clk 0:02:57.5]} 12. Qd2 {[%clk 0:03:00.9]} 12... Nh7 {[%clk
0:02:56.9]} 13. Be3 {[%clk 0:03:01.2]} 13... h4 {[%clk 0:02:56.7]} 14. Nf1
{[%clk 0:03:01.4]} 14... f5 {[%clk 0:02:53]} 15. a5 {[%clk 0:03:01.3]} 15... Qd8
{[%clk 0:02:52.9]} 16. f3 {[%clk 0:02:42.6]} 16... Nd7 {[%clk 0:02:48.5]} 17.
Bf4 {[%clk 0:02:37.9]} 17... Ne5 {[%clk 0:02:48.2]} 18. Ne3 {[%clk 0:02:32.6]}
18... fxe4 {[%clk 0:02:48.1]} 19. Bxe5 {[%clk 0:02:26.8]} 19... Bxe5 {[%clk
0:02:47.2]} 20. Nxe4 {[%clk 0:02:26.4]} 20... Ng5 {[%clk 0:02:39.4]} 21. Nc4
{[%clk 0:01:39]} 21... Nxe4 {[%clk 0:02:38.8]} 22. fxe4 {[%clk 0:01:39.9]} 22...
Bf4 {[%clk 0:02:39.2]} 23. Qc3 {[%clk 0:01:37.9]} 23... Bh6 {[%clk 0:02:33.7]}
24. Rf1 {[%clk 0:01:28.8]} 24... Rxf1+ {[%clk 0:01:45.6]} 25. Kxf1 {[%clk
0:01:28]} 25... Bd7 {[%clk 0:01:43.1]} 26. Kg1 {[%clk 0:01:23.1]} 26... Qe7
{[%clk 0:01:39.8]} 27. Bf3 {[%clk 0:01:14.7]} 27... Rf8 {[%clk 0:01:38.8]} 28.
Re1 {[%clk 0:01:12.9]} 28... h3 {[%clk 0:01:37.4]} 29. e5 {[%clk 0:01:12.1]}
29... hxg2 {[%clk 0:01:33.1]} 30. Bxg2 {[%clk 0:01:12]} 30... Qh4 {[%clk
0:01:21.4]} 31. Rf1 {[%clk 0:00:42.9]} 31... Rxf1+ {[%clk 0:01:17.5]} 32. Kxf1
{[%clk 0:00:41.2]} 32... Bb5 {[%clk 0:01:15.2]} 33. b3 {[%clk 0:00:40]} 33...
Qxh2 {[%clk 0:01:12.5]} 34. exd6 {[%clk 0:00:38.5]} 34... Qxd6 {[%clk
0:01:06.9]} 35. Qh3 {[%clk 0:00:36.5]} 35... Qf4+ {[%clk 0:01:00]} 36. Kg1
{[%clk 0:00:35.9]} 36... Qd4+ {[%clk 0:00:56.1]} 37. Kh1 {[%clk 0:00:34.3]}
37... Qd1+ {[%clk 0:00:55.9]} 38. Bf1 {[%clk 0:00:33.8]} 38... Qxd5+ {[%clk
0:00:54.9]} 39. Bg2 {[%clk 0:00:34.3]} 39... Qd1+ {[%clk 0:00:53.3]} 40. Kh2
{[%clk 0:00:34.6]} 40... Bf4+ {[%clk 0:00:52.9]} 0-1

[Event "Early-Titled-Tuesday-Blitz-June-18-2024"]
[Site "Chess.com"]
[Date "2024.06.18"]
[Round "2"]
[White "Shivananda1964"]
[Black "Mikhail_Bryakin"]
[Result "0-1"]
[WhiteElo "2392"]
[BlackElo "2743"]
[TimeControl "180+1"]
[EndTime "8:17:19 PDT"]
[Termination "Mikhail_Bryakin won on time"]

1. e4 {[%clk 0:02:59]} 1... Nf6 {[%clk 0:03:00.2]} 2. e5 {[%clk 0:02:58.1]} 2...
Nd5 {[%clk 0:03:00.9]} 3. c4 {[%clk 0:02:58.5]} 3... Nb6 {[%clk 0:03:00.9]} 4.
c5 {[%clk 0:02:59.1]} 4... Nd5 {[%clk 0:03:00.9]} 5. Bc4 {[%clk 0:02:59.8]} 5...
e6 {[%clk 0:03:00.1]} 6. d4 {[%clk 0:03:00.5]} 6... d6 {[%clk 0:02:59.4]} 7.
cxd6 {[%clk 0:03:00.7]} 7... cxd6 {[%clk 0:02:59.1]} 8. Nf3 {[%clk 0:03:01.1]}
8... Nc6 {[%clk 0:02:58.9]} 9. Qe2 {[%clk 0:03:01.5]} 9... Nb6 {[%clk
0:02:47.2]} 10. Bb3 {[%clk 0:03:00.5]} 10... dxe5 {[%clk 0:02:34.8]} 11. dxe5
{[%clk 0:02:59.9]} 11... Bd7 {[%clk 0:02:30.6]} 12. O-O {[%clk 0:02:55.5]} 12...
h6 {[%clk 0:02:28.5]} 13. Nc3 {[%clk 0:02:53.3]} 13... Be7 {[%clk 0:02:23]} 14.
Rd1 {[%clk 0:02:49.5]} 14... Na5 {[%clk 0:02:04.9]} 15. Bc2 {[%clk 0:02:45.6]}
15... Qc7 {[%clk 0:02:05.5]} 16. Nb5 {[%clk 0:02:23.1]} 16... Bxb5 {[%clk
0:02:01.7]} 17. Qxb5+ {[%clk 0:02:22.7]} 17... Qc6 {[%clk 0:01:53.3]} 18. Qxa5
{[%clk 0:01:15.5]} 18... Qxc2 {[%clk 0:01:51.8]} 19. Qb5+ {[%clk 0:01:15.8]}
19... Qc6 {[%clk 0:01:50.4]} 20. Qxc6+ {[%clk 0:01:15.8]} 20... bxc6 {[%clk
0:01:51.3]} 21. b3 {[%clk 0:01:10.7]} 21... Nd5 {[%clk 0:01:51.7]} 22. Bb2
{[%clk 0:00:57.6]} 22... Kd7 {[%clk 0:01:50.5]} 23. Rac1 {[%clk 0:00:54.4]}
23... a5 {[%clk 0:01:50.8]} 24. Nd4 {[%clk 0:00:46.4]} 24... Rhc8 {[%clk
0:01:50.8]} 25. Rc4 {[%clk 0:00:40.6]} 25... a4 {[%clk 0:01:43]} 26. bxa4 {[%clk
0:00:13.9]} 26... Rcb8 {[%clk 0:01:43.3]} 27. Rd2 {[%clk 0:00:14.2]} 27... Rb4
{[%clk 0:01:42.2]} 28. Rxb4 {[%clk 0:00:10.7]} 28... Bxb4 {[%clk 0:01:43.1]} 29.
Rc2 {[%clk 0:00:11.2]} 29... c5 {[%clk 0:01:30]} 30. Nb3 {[%clk 0:00:11.3]}
30... Rxa4 {[%clk 0:01:30.6]} 31. Nxc5+ {[%clk 0:00:09.6]} 31... Bxc5 {[%clk
0:01:31.1]} 32. Rxc5 {[%clk 0:00:10.1]} 32... Rxa2 {[%clk 0:01:32]} 33. Bc1
{[%clk 0:00:05.2]} 33... Re2 {[%clk 0:01:32.2]} 34. Kf1 {[%clk 0:00:04.3]} 34...
Rxe5 {[%clk 0:01:32.5]} 35. h4 {[%clk 0:00:02.3]} 35... h5 {[%clk 0:01:31.5]}
36. g3 {[%clk 0:00:02.5]} 36... g6 {[%clk 0:01:31.4]} 37. Kg2 {[%clk 0:00:02.9]}
37... Re4 {[%clk 0:01:26.8]} 38. Kf3 {[%clk 0:00:01.7]} 38... Rb4 {[%clk
0:01:24.5]} 39. Bd2 {[%clk 0:00:01]} 39... Rb3+ {[%clk 0:01:23.4]} 0-1

[Event "Early-Titled-Tuesday-Blitz-June-18-2024"]
[Site "Chess.com"]
[Date "2024.06.18"]
[Round "2"]
[White "NovozhilovSemen"]
[Black "crescentmoon2411"]
[Result "1-0"]
[WhiteElo "2630"]
[BlackElo "2864"]
[TimeControl "180+1"]
[EndTime "8:17:23 PDT"]
[Termination "NovozhilovSemen won on time"]

1. d4 {[%clk 0:03:00.9]} 1... d5 {[%clk 0:02:55.1]} 2. c4 {[%clk 0:03:00.2]}
2... c6 {[%clk 0:02:55.7]} 3. Nf3 {[%clk 0:02:58.2]} 3... Nf6 {[%clk 0:02:55.4]}
4. e3 {[%clk 0:02:58.5]} 4... a6 {[%clk 0:02:53.9]} 5. Nc3 {[%clk 0:02:46]} 5...
e6 {[%clk 0:02:52.4]} 6. a3 {[%clk 0:02:41.1]} 6... Nbd7 {[%clk 0:02:48.7]} 7.
cxd5 {[%clk 0:02:35.7]} 7... exd5 {[%clk 0:02:46.8]} 8. Ne5 {[%clk 0:02:32]}
8... Bd6 {[%clk 0:02:47.7]} 9. f4 {[%clk 0:02:31.9]} 9... O-O {[%clk 0:02:46.3]}
10. Bd3 {[%clk 0:02:31.7]} 10... Re8 {[%clk 0:02:45.7]} 11. O-O {[%clk
0:02:31.7]} 11... c5 {[%clk 0:02:44.4]} 12. Qf3 {[%clk 0:02:27.7]} 12... Nf8
{[%clk 0:02:33.7]} 13. g4 {[%clk 0:02:13]} 13... cxd4 {[%clk 0:02:07.5]} 14.
exd4 {[%clk 0:02:11.2]} 14... Qb6 {[%clk 0:02:07.6]} 15. Be3 {[%clk 0:02:01.1]}
15... Qxb2 {[%clk 0:00:56.3]} 16. Nxd5 {[%clk 0:01:58.2]} 16... Nxd5 {[%clk
0:00:34]} 17. Qxd5 {[%clk 0:01:59.1]} 17... Bxe5 {[%clk 0:00:32.8]} 18. fxe5
{[%clk 0:01:58.9]} 18... Be6 {[%clk 0:00:32.4]} 19. Qf3 {[%clk 0:01:45.5]} 19...
Rad8 {[%clk 0:00:31.3]} 20. Be4 {[%clk 0:01:42.2]} 20... Rxd4 {[%clk 0:00:19.7]}
21. Rab1 {[%clk 0:01:30.9]} 21... Qc3 {[%clk 0:00:11.1]} 22. Bxd4 {[%clk
0:01:30.7]} 22... Qxd4+ {[%clk 0:00:10.7]} 23. Kh1 {[%clk 0:01:31]} 23... b5
{[%clk 0:00:08]} 24. Rfe1 {[%clk 0:01:23.1]} 24... Bc4 {[%clk 0:00:06.9]} 25.
Rbd1 {[%clk 0:01:20.9]} 25... Qc5 {[%clk 0:00:06.7]} 26. Bd5 {[%clk 0:01:17.9]}
26... Ne6 {[%clk 0:00:06.1]} 27. Bxc4 {[%clk 0:01:03.3]} 27... bxc4 {[%clk
0:00:05.7]} 28. Rf1 {[%clk 0:01:03.8]} 28... Rf8 {[%clk 0:00:04.8]} 29. Qd5
{[%clk 0:01:03.9]} 1-0

[Event "Early-Titled-Tuesday-Blitz-June-18-2024"]
[Site "Chess.com"]
[Date "2024.06.18"]
[Round "2"]
[White "mostafa_sakha"]
[Black "Lucky_Puncher"]
[Result "0-1"]
[WhiteElo "2376"]
[BlackElo "2605"]
[TimeControl "180+1"]
[EndTime "8:17:24 PDT"]
[Termination "Lucky_Puncher won by resignation"]

1. d4 {[%clk 0:03:00]} 1... Nf6 {[%clk 0:02:58.8]} 2. c4 {[%clk 0:03:00.2]} 2...
e6 {[%clk 0:02:59.2]} 3. Nc3 {[%clk 0:03:00.5]} 3... Bb4 {[%clk 0:02:58.1]} 4.
e3 {[%clk 0:03:00.4]} 4... O-O {[%clk 0:02:58.2]} 5. Bd3 {[%clk 0:03:00.5]} 5...
Re8 {[%clk 0:02:56.5]} 6. Nf3 {[%clk 0:03:00.4]} 6... d5 {[%clk 0:02:55.7]} 7.
O-O {[%clk 0:03:00.1]} 7... Bf8 {[%clk 0:02:53.4]} 8. e4 {[%clk 0:02:46.4]} 8...
dxc4 {[%clk 0:02:50.4]} 9. Bxc4 {[%clk 0:02:45.9]} 9... a6 {[%clk 0:02:50.9]}
10. a4 {[%clk 0:02:45.5]} 10... c5 {[%clk 0:02:48.4]} 11. d5 {[%clk 0:02:42.4]}
11... exd5 {[%clk 0:02:47.9]} 12. exd5 {[%clk 0:02:35.7]} 12... Bg4 {[%clk
0:02:47.5]} 13. h3 {[%clk 0:02:35.4]} 13... Bh5 {[%clk 0:02:47.6]} 14. Bg5
{[%clk 0:02:31]} 14... h6 {[%clk 0:02:47.3]} 15. Bh4 {[%clk 0:02:21.2]} 15...
Nbd7 {[%clk 0:02:45.4]} 16. g4 {[%clk 0:02:16.9]} 16... Bg6 {[%clk 0:02:44.9]}
17. d6 {[%clk 0:02:00.7]} 17... Qb6 {[%clk 0:02:35.2]} 18. Bg3 {[%clk
0:01:33.7]} 18... Qxb2 {[%clk 0:01:57.5]} 19. Nd5 {[%clk 0:01:13.8]} 19... Nxd5
{[%clk 0:01:56.9]} 20. Bxd5 {[%clk 0:01:10.8]} 20... Rab8 {[%clk 0:01:52.4]} 21.
Nh4 {[%clk 0:01:03.1]} 21... Bh7 {[%clk 0:01:38.6]} 22. Bxf7+ {[%clk 0:00:48.8]}
22... Kxf7 {[%clk 0:01:38.2]} 23. Qd5+ {[%clk 0:00:48.5]} 23... Re6 {[%clk
0:01:37.8]} 24. Rae1 {[%clk 0:00:48]} 24... Re8 {[%clk 0:01:36.8]} 25. Rxe6
{[%clk 0:00:40.5]} 25... Rxe6 {[%clk 0:01:36.9]} 26. Re1 {[%clk 0:00:38.8]}
26... Qf6 {[%clk 0:01:25.7]} 27. Nf5 {[%clk 0:00:22.3]} 27... Bg8 {[%clk
0:01:13.8]} 28. Bh4 {[%clk 0:00:19.9]} 28... g5 {[%clk 0:01:11.1]} 29. Bg3
{[%clk 0:00:19.5]} 29... Kg6 {[%clk 0:01:11.4]} 30. Qd3 {[%clk 0:00:13.6]} 30...
Rxe1+ {[%clk 0:01:11]} 31. Kg2 {[%clk 0:00:12.8]} 31... Kf7 {[%clk 0:01:05.6]}
32. Qd5+ {[%clk 0:00:11.5]} 32... Qe6 {[%clk 0:01:06.2]} 33. Qxb7 {[%clk
0:00:09.5]} 33... Qe4+ {[%clk 0:01:06.4]} 34. Qxe4 {[%clk 0:00:09.7]} 34... Rxe4
{[%clk 0:01:07.3]} 0-1

[Event "Early-Titled-Tuesday-Blitz-June-18-2024"]
[Site "Chess.com"]
[Date "2024.06.18"]
[Round "2"]
[White "blitzking1729"]
[Black "Predatoru"]
[Result "1-0"]
[WhiteElo "2829"]
[BlackElo "2571"]
[TimeControl "180+1"]
[EndTime "8:17:27 PDT"]
[Termination "blitzking1729 won by resignation"]

1. Nf3 {[%clk 0:02:59.9]} 1... d5 {[%clk 0:02:57.6]} 2. d4 {[%clk 0:02:59.3]}
2... e6 {[%clk 0:02:56.9]} 3. g3 {[%clk 0:02:59]} 3... b5 {[%clk 0:02:55.7]} 4.
Bg2 {[%clk 0:02:58.7]} 4... Bb7 {[%clk 0:02:56.3]} 5. O-O {[%clk 0:02:59.3]}
5... Nf6 {[%clk 0:02:56.7]} 6. a4 {[%clk 0:02:59.2]} 6... b4 {[%clk 0:02:57]} 7.
c4 {[%clk 0:02:59.8]} 7... bxc3 {[%clk 0:02:57.8]} 8. Nxc3 {[%clk 0:02:59.9]}
8... Nbd7 {[%clk 0:02:52.8]} 9. a5 {[%clk 0:02:59.5]} 9... Ba6 {[%clk 0:02:49]}
10. Bf4 {[%clk 0:02:58.4]} 10... c5 {[%clk 0:02:46.6]} 11. Re1 {[%clk
0:02:50.8]} 11... cxd4 {[%clk 0:02:42.4]} 12. Nxd4 {[%clk 0:02:50.8]} 12... Rc8
{[%clk 0:02:30.3]} 13. e4 {[%clk 0:02:48.1]} 13... dxe4 {[%clk 0:01:35.5]} 14.
Nxe4 {[%clk 0:02:43.7]} 14... Nxe4 {[%clk 0:01:35.6]} 15. Bxe4 {[%clk
0:02:34.6]} 15... Bc5 {[%clk 0:01:34.7]} 16. Nxe6 {[%clk 0:02:13.1]} 16... fxe6
{[%clk 0:01:33.6]} 17. Qh5+ {[%clk 0:02:13.5]} 17... Kf8 {[%clk 0:01:25.8]} 18.
Rad1 {[%clk 0:02:10.7]} 18... Qe7 {[%clk 0:01:08.9]} 19. Qf3 {[%clk 0:01:42.5]}
19... Nf6 {[%clk 0:01:07.1]} 20. Bf5 {[%clk 0:01:41.9]} 20... Bb7 {[%clk
0:00:59.5]} 21. Qb3 {[%clk 0:01:35.9]} 21... Bd5 {[%clk 0:00:51.5]} 22. Rxd5
{[%clk 0:01:14.4]} 22... Nxd5 {[%clk 0:00:52.4]} 23. Rxe6 {[%clk 0:01:14.1]}
23... Bxf2+ {[%clk 0:00:37.4]} 24. Kf1 {[%clk 0:00:54.2]} 24... Nxf4 {[%clk
0:00:08.1]} 25. Rxe7 {[%clk 0:00:53.7]} 25... Rc1+ {[%clk 0:00:08.4]} 26. Kxf2
{[%clk 0:00:54.1]} 26... Kxe7 {[%clk 0:00:08.9]} 27. gxf4 {[%clk 0:00:48.1]}
27... Rd8 {[%clk 0:00:06.2]} 28. Qe3+ {[%clk 0:00:46.7]} 28... Kf6 {[%clk
0:00:05.6]} 1-0